bitfinex/quotes_SOLUSD_20220210
["timestamp","ask_amount","ask_price","bid_price","bid_amount"]
[1644457217564,13.2658,113.14,113.12,0.5]
[1644457217761,4.45353679,113.16,113.12,0.5]
[1644457217967,4.418,113.16,113.12,0.5]
[1644457218163,4.418,113.16,113.12,10.607]
[1644457218765,17.6816,113.16,113.12,10.607]
[1644457218967,13.2636,113.16,113.12,10.607]
[1644457219366,13.2636,113.16,113.12,0.5]
[1644457223471,23.86193679,113.17,113.12,0.5]
[1644457223672,23.8264,113.17,113.12,0.5]
[1644457223972,23.8264,113.17,113.12,12.96]
[1644457224172,23.8264,113.17,113.12,21.779]
[1644457224374,37.0888,113.17,113.12,21.779]
[1644457224872,37.0888,113.17,113.12,26.197]
[1644457225777,37.0888,113.17,113.12,21.779]
[1644457226993,37.0888,113.17,113.12,12.96]
[1644457228596,14.54656677,113.18,113.12,12.96]
[1644457228797,0.03553679,113.18,113.12,19.45907989]
[1644457228996,0.03553679,113.18,113.12,19.20907989]
[1644457229200,0.03553679,113.18,113.13,6.0]
[1644457229399,0.03553679,113.18,113.14,16.878]
[1644457229597,1.25022998,113.21,113.15,61.18059556]
[1644457229797,0.03553679,113.2,113.15,73.64059556]
[1644457229996,14.54306677,113.21,113.15,73.64059556]
[1644457230596,1.28576677,113.21,113.15,73.64059556]
[1644457231700,1.28576677,113.21,113.15,86.89689556]
[1644457231899,1.28576677,113.21,113.15,88.72797545]
[1644457232901,7.34638254,113.24,113.18,88.07]
[1644457233101,0.44368111,113.24,113.19,12.46]
[1644457233301,2.48570143,113.28,113.19,24.70707989]
[1644457233503,4.9792598,113.28,113.2,1.83107989]
[1644457233700,4.415,113.27,113.21,64.52118997]
[1644457233900,4.415,113.27,113.22,13.2483]
[1644457234102,4.415,113.28,113.23,48.94195482]
[1644457234303,6.89970143,113.29,113.24,12.46]
[1644457234501,6.89970143,113.29,113.25,36.08385938]
[1644457234701,4.414,113.29,113.25,36.08385938]
[1644457234903,6.89970143,113.29,113.25,36.08385938]
[1644457235107,4.414,113.29,113.25,36.08385938]
[1644457235505,13.2492,113.28,113.22,12.46]
[1644457235805,4.415,113.27,113.22,12.46]
[1644457236010,4.415,113.28,113.22,12.46]
[1644457236406,34.31403551,113.27,113.2,58.84117923]
[1644457236606,4.415,113.26,113.2,58.84117923]
[1644457237807,17.6664,113.26,113.2,58.84117923]
[1644457238611,38.2892874,113.25,113.2,58.84117923]
[1644457238911,13.2544,113.24,113.2,12.46]
[1644457239110,13.2544,113.24,113.17,4.415]
[1644457239111,4.416,113.23,113.17,4.415]
[1644457239308,4.416,113.23,113.16,12.46]
[1644457239811,28.1085,113.24,113.16,14.29088047]
[1644457240109,23.6915,113.24,113.17,39.9002893]
[1644457240309,23.6915,113.24,113.19,48.79182326]
[1644457240511,4.416,113.23,113.19,61.25182326]
[1644457242912,4.416,113.23,113.19,48.79182326]
[1644457243613,17.6709,113.23,113.19,48.79182326]
[1644457246317,13.2549,113.23,113.19,48.79182326]
[1644457247513,17.6709,113.23,113.19,48.79182326]
[1644457248215,36.9452,113.24,113.19,61.25182326]
[1644457248417,4.416,113.26,113.19,70.56182326]
[1644457248616,4.45164762,113.26,113.19,70.56182326]
[1644457249216,52.89695435,113.26,113.19,70.56182326]
[1644457249817,13.2526,113.25,113.19,70.56182326]
[1644457250018,45.34563948,113.24,113.19,70.56182326]
[1644457250219,45.34563948,113.24,113.19,61.25182326]
[1644457250517,40.92963948,113.24,113.19,61.25182326]
[1644457250717,13.2565,113.22,113.19,48.79182326]
[1644457250918,9.98039994,113.21,113.17,12.46]
[1644457251320,4.417,113.2,113.15,4.417]
[1644457251716,13.2604,113.19,113.15,4.417]
[1644457251920,4.418,113.18,113.15,4.417]
[1644457252318,5.56439994,113.17,113.15,4.417]
[1644457252518,44.2066,113.2,113.15,4.417]
[1644457252717,6.90370143,113.22,113.15,4.417]
[1644457252718,4.45364762,113.22,113.15,4.417]
[1644457253118,13.2595,113.19,113.15,4.417]
[1644457253617,4.418,113.18,113.15,4.417]
[1644457253818,5.56439994,113.17,113.15,4.417]
[1644457254818,18.82679994,113.17,113.15,4.417]
[1644457256320,60.41763361,113.17,113.15,4.417]
[1644457257218,18.82679994,113.17,113.15,4.417]
[1644457257718,18.82679994,113.17,113.12,45.25347484]
[1644457260819,18.82679994,113.17,113.12,47.08435531]
[1644457261726,18.82679994,113.17,113.14,35.11195872]
[1644457262123,5.56439994,113.17,113.14,35.11195872]
[1644457266827,5.56439994,113.17,113.14,47.57195872]
[1644457269629,5.56439994,113.17,113.15,15.58551534]
[1644457269828,5.56439994,113.17,113.16,12.46]
[1644457270029,5.56439994,113.17,113.16,14.28881534]
[1644457270333,0.03564762,113.19,113.16,29.91781534]
[1644457270530,0.03564762,113.21,113.17,35.70538707]
[1644457270727,0.03564762,113.22,113.17,48.16538707]
[1644457270930,6.93934905,113.23,113.17,49.99420241]
[1644457271128,0.03564762,113.22,113.18,1.82881534]
[1644457271330,0.03564762,113.23,113.19,12.46]
[1644457271628,4.416,113.24,113.2,35.0152977]
[1644457272728,13.2545,113.23,113.2,35.0152977]
[1644457273329,4.416,113.24,113.2,35.0152977]
[1644457273932,6.90170143,113.24,113.2,35.0152977]
[1644457274131,4.416,113.24,113.2,35.0152977]
[1644457274734,17.6693,113.24,113.2,35.0152977]
[1644457276860,13.2533,113.24,113.2,47.4752977]
[1644457278064,13.28774762,113.25,113.2,47.4752977]
[1644457278262,13.2521,113.25,113.2,47.4752977]
[1644457278662,13.2521,113.25,113.2,60.7265977]
[1644457278861,0.03564762,113.26,113.2,71.0725977]
[1644457279863,13.28654762,113.26,113.2,71.0725977]
[1644457281868,13.28654762,113.26,113.2,60.7265977]
[1644457283273,17.70154762,113.26,113.2,60.7265977]
[1644457284771,17.70154762,113.26,113.2,47.4752977]
[1644457285172,20.18724905,113.26,113.2,47.4752977]
[1644457285573,34.71806312,113.25,113.2,35.0152977]
[1644457285775,4.415,113.24,113.2,35.0152977]
[1644457285974,13.2558,113.23,113.2,35.0152977]
[1644457286173,4.416,113.22,113.2,35.0152977]
[1644457286373,4.416,113.23,113.18,36.7955]
[1644457286572,4.416,113.23,113.18,24.3355]
[1644457287376,4.416,113.23,113.19,34.57594948]
[1644457287776,13.2556,113.22,113.19,34.57594948]
[1644457287977,1.56439994,113.21,113.19,34.57594948]
[1644457288780,14.82079994,113.21,113.17,13.059]
[1644457289777,58.57275882,113.21,113.15,71.35468767]
[1644457290077,4.417,113.2,113.15,58.89468767]
[1644457290278,54.58119495,113.19,113.15,23.6407]
[1644457290879,13.26,113.19,113.15,23.6407]
[1644457291881,13.26,113.19,113.16,35.53314195]
[1644457292278,1.56439994,113.18,113.16,35.53314195]
[1644457292477,14.82469994,113.18,113.16,35.53314195]
[1644457293078,1.56439994,113.18,113.16,35.53314195]
[1644457294080,0.03564762,113.21,113.17,4.5]
[1644457294379,24.80084762,113.22,113.17,4.5]
[1644457294980,13.2571,113.21,113.18,43.95020736]
[1644457295381,1.56439994,113.2,113.18,43.95020736]
[1644457296381,1.56439994,113.2,113.19,1.46780003]
[1644457297283,1.56439994,113.2,113.18,43.95020736]
[1644457301418,1.56439994,113.2,113.16,25.7157]
[1644457301717,1.56439994,113.2,113.16,12.46]
[1644457302417,1.56439994,113.2,113.16,49.25346624]
[1644457303722,57.67053721,113.2,113.14,16.877]
[1644457304621,57.67053721,113.2,113.14,63.80279269]
[1644457305321,4.418,113.19,113.14,59.38579269]
[1644457305520,56.169664,113.18,113.14,12.46]
[1644457305720,56.169664,113.18,113.11,27.9151]
[1644457305920,56.169664,113.18,113.11,23.4971]
[1644457305921,4.418,113.17,113.11,23.4971]
[1644457306525,4.418,113.17,113.12,38.51941702]
[1644457306723,13.2625,113.16,113.12,38.51941702]
[1644457310121,13.2625,113.16,113.12,50.97941702]
[1644457311221,13.2612,113.17,113.12,55.39741702]
[1644457311421,13.2612,113.17,113.12,50.97941702]
[1644457312123,41.1484,113.18,113.12,64.23991702]
[1644457312321,36.7304,113.18,113.12,64.23991702]
[1644457313623,36.7304,113.18,113.12,68.65791702]
[1644457313624,82.66231117,113.18,113.12,68.65791702]
[1644457314224,36.7304,113.18,113.12,68.65791702]
[1644457314623,36.7304,113.18,113.12,64.23991702]
[1644457317125,36.7304,113.18,113.13,1.82881534]
[1644457317326,6.90370143,113.2,113.13,15.08831534]
[1644457317527,13.2588,113.19,113.14,12.46]
[1644457317726,13.2588,113.19,113.15,45.43311028]
[1644457319630,13.2588,113.19,113.15,57.89311028]
[1644457323434,56.73889551,113.19,113.15,57.89311028]
[1644457323634,13.2588,113.19,113.15,57.89311028]
[1644457325537,17.6755,113.2,113.15,57.89311028]
[1644457325739,6.90270143,113.21,113.15,59.72192562]
[1644457325938,2.48570143,113.21,113.15,57.89311028]
[1644457326137,2.48570143,113.22,113.15,57.89311028]
[1644457326338,4.9920782,113.22,113.15,57.89311028]
[1644457326537,6.93834905,113.23,113.15,57.89311028]
[1644457326738,13.2563,113.21,113.17,34.22011181]
[1644457326938,13.2563,113.21,113.17,46.68011181]
[1644457327947,4.45264762,113.23,113.17,46.68011181]
[1644457328141,4.45264762,113.23,113.17,48.50927949]
[1644457328340,4.45264762,113.23,113.18,6.0]
[1644457328544,2.48570143,113.26,113.19,16.876]
[1644457328742,0.03564762,113.24,113.2,6.0]
[1644457328941,4.416,113.25,113.21,55.61346989]
[1644457329142,0.03564762,113.25,113.21,55.61346989]
[1644457329341,0.03564762,113.26,113.22,23.3327]
[1644457329541,17.6646,113.27,113.23,49.54107261]
[1644457329747,17.70024762,113.27,113.23,49.54107261]
[1644457329943,17.6646,113.27,113.23,49.54107261]
[1644457331745,13.2496,113.27,113.23,49.54107261]
[1644457333754,17.6646,113.27,113.23,12.46]
[1644457339174,17.6646,113.27,113.24,46.98546693]
[1644457339376,1.56439994,113.26,113.25,3.03219997]
[1644457339574,1.56439994,113.26,113.24,46.98546693]
[1644457339774,1.56439994,113.26,113.25,1.46780003]
[1644457340175,1.56439994,113.26,113.24,46.98546693]
[1644457341375,1.56439994,113.26,113.24,50.0176669]
[1644457341576,1.56439994,113.26,113.25,1.46780003]
[1644457341978,2.48953026,113.35,113.27,54.70184108]
[1644457342177,2.48593024,113.4,113.32,156.12013464]
[1644457342377,3.73429539,113.43,113.37,0.65194265]
[1644457342581,1.719,113.46,113.37,13.11194265]
[1644457342878,39.00048776,113.45,113.37,13.11194265]
[1644457343078,43.1434457,113.43,113.37,13.11194265]
[1644457343477,1.762,113.42,113.37,13.11194265]
[1644457344078,43.1434457,113.43,113.37,13.11194265]
[1644457346583,47.3731074,113.41,113.37,13.11194265]
[1644457347579,47.3731074,113.41,113.37,12.46]
[1644457351484,47.3731074,113.41,113.36,12.46]
[1644457351683,47.3731074,113.41,113.33,12.46]
[1644457351883,47.3731074,113.41,113.27,70.2464]
[1644457351884,59.3491074,113.41,113.29,12.46]
[1644457352084,72.5879074,113.41,113.3,4.41]
[1644457352289,72.5879074,113.41,113.31,38.20264575]
[1644457352490,72.5879074,113.41,113.32,4.41]
[1644457352689,72.5879074,113.41,113.33,45.6701607]
[1644457352889,60.6119074,113.41,113.33,45.6701607]
[1644457353787,47.3731074,113.41,113.33,45.6701607]
[1644457353993,47.3731074,113.41,113.33,58.1301607]
[1644457354789,47.3731074,113.41,113.33,12.46]
[1644457354992,47.3731074,113.41,113.32,4.41]
[1644457354993,60.6116074,113.41,113.32,4.41]
[1644457355189,1.85,113.4,113.32,4.41]
[1644457355791,40.02326852,113.39,113.32,4.41]
[1644457356691,53.26476852,113.39,113.32,4.41]
[1644457356992,1.85,113.38,113.31,50.18999828]
[1644457357291,43.34730447,113.37,113.31,50.18999828]
[1644457357492,43.34730447,113.37,113.31,12.46]
[1644457357690,43.38335656,113.37,113.31,12.46]
[1644457358592,43.38335656,113.37,113.32,4.41]
[1644457358792,43.34730447,113.37,113.32,4.41]
[1644457360097,45.19730447,113.37,113.31,12.46]
[1644457360697,45.19730447,113.37,113.32,43.24322169]
[1644457361097,43.34730447,113.37,113.32,55.70322169]
[1644457361498,0.03605209,113.38,113.32,55.70322169]
[1644457361702,1.88505209,113.39,113.32,12.46]
[1644457361899,0.03605209,113.38,113.32,12.46]
[1644457362101,1.85,113.37,113.32,12.46]
[1644457362700,46.74176901,113.36,113.32,12.46]
[1644457363103,46.74176901,113.36,113.32,58.39016793]
[1644457363300,0.03605209,113.38,113.32,58.39016793]
[1644457363500,0.03605209,113.4,113.32,58.39016793]
[1644457363700,24.8827,113.41,113.32,12.46]
[1644457363701,0.03605209,113.38,113.32,12.46]
[1644457363900,0.03605209,113.39,113.32,12.46]
[1644457364100,1.88805209,113.38,113.32,12.46]
[1644457364305,0.03605209,113.4,113.32,12.46]
[1644457364501,0.03605209,113.38,113.32,12.46]
[1644457364702,1.852,113.37,113.32,54.21327507]
[1644457364901,45.63604898,113.38,113.32,54.21327507]
[1644457365104,45.63604898,113.38,113.33,4.41]
[1644457365302,45.63604898,113.38,113.34,57.20066559]
[1644457365503,45.59999689,113.38,113.34,12.46]
[1644457366306,0.03605209,113.41,113.34,12.46]
[1644457366506,0.03605209,113.41,113.34,23.073]
[1644457366706,1.88105209,113.43,113.34,23.073]
[1644457366917,0.03605209,113.41,113.35,4.409]
[1644457367107,0.03605209,113.42,113.35,12.46]
[1644457367308,45.15958082,113.39,113.35,12.46]
[1644457371527,37.74051098,113.37,113.35,12.46]
[1644457374027,37.74051098,113.37,113.33,12.46]
[1644457374231,46.02056307,113.37,113.29,4.41]
[1644457374428,1.88605209,113.36,113.3,12.46]
[1644457374628,1.85,113.36,113.3,12.46]
[1644457374829,1.88605209,113.36,113.3,12.46]
[1644457375029,1.88605209,113.36,113.31,38.58810848]
[1644457375231,37.77656307,113.37,113.31,64.28630848]
[1644457375829,37.77656307,113.37,113.31,12.46]
[1644457377839,51.01746307,113.37,113.31,12.46]
[1644457378034,1.862,113.36,113.31,12.46]
[1644457378232,48.77291854,113.35,113.31,12.46]
[1644457383642,48.77291854,113.35,113.31,55.08618384]
[1644457384242,48.77291854,113.35,113.31,12.46]
[1644457388343,48.77291854,113.35,113.32,47.24542963]
[1644457389146,0.03605209,113.37,113.32,47.24542963]
[1644457389350,0.03605209,113.37,113.33,12.46]
[1644457391247,42.22581058,113.37,113.33,12.46]
[1644457393852,55.46581058,113.37,113.31,12.46]
[1644457394055,1.85,113.36,113.31,12.46]
[1644457394853,38.88990788,113.35,113.31,12.46]
[1644457402992,48.45890788,113.35,113.29,4.41]
[1644457403192,3.08422607,113.34,113.28,60.8818]
[1644457403389,3.08422607,113.34,113.26,4.412]
[1644457403590,3.08422607,113.34,113.25,16.873]
[1644457403793,1.23422607,113.33,113.25,16.873]
[1644457403990,1.85,113.32,113.26,43.94327151]
[1644457404190,51.37063457,113.31,113.26,43.94327151]
[1644457405290,51.37063457,113.31,113.26,56.40327151]
[1644457405690,51.37063457,113.31,113.26,69.64837151]
[1644457407693,38.12533457,113.31,113.26,69.64837151]
[1644457409697,51.37043457,113.31,113.26,69.64837151]
[1644457410999,38.12533457,113.31,113.26,69.64837151]
[1644457411396,39.97533457,113.31,113.26,69.64837151]
[1644457414500,38.12533457,113.31,113.26,69.64837151]
[1644457414706,51.37083457,113.31,113.26,12.46]
[1644457414899,62.67583457,113.31,113.26,12.46]
[1644457415900,62.67583457,113.31,113.26,51.51796625]
[1644457416309,64.52583457,113.31,113.26,51.51796625]
[1644457417102,64.52583457,113.31,113.26,12.46]
[1644457419502,53.22083457,113.31,113.26,12.46]
[1644457419704,51.37083457,113.31,113.26,50.03077966]
[1644457420403,51.37083457,113.31,113.26,12.46]
[1644457420803,53.22083457,113.31,113.26,12.46]
[1644457424906,52.72083457,113.31,113.26,12.46]
[1644457428016,52.72083457,113.31,113.26,57.26387062]
[1644457428214,13.2455,113.31,113.26,57.26387062]
[1644457428513,13.2438,113.32,113.26,59.116749]
[1644457428737,13.2438,113.32,113.27,4.413]
[1644457428914,13.2438,113.32,113.28,12.46]
[1644457429115,49.87052607,113.35,113.28,12.46]
[1644457429322,43.58979657,113.34,113.29,36.29651119]
[1644457430315,43.58979657,113.34,113.3,6.0]
[1644457430716,13.2427,113.33,113.3,6.0]
[1644457431316,13.2427,113.33,113.29,36.29651119]
[1644457431517,13.2427,113.33,113.3,6.0]
[1644457431918,13.2427,113.33,113.31,6.06439994]
[1644457432619,13.2427,113.33,113.31,41.45593643]
[1644457432818,13.2415,113.34,113.31,53.60693643]
[1644457433020,13.2415,113.34,113.31,18.21539994]
[1644457434421,13.2402,113.35,113.31,18.21539994]
[1644457434622,1.27027816,113.37,113.31,18.21539994]
[1644457434921,0.03605209,113.37,113.32,1.85287838]
[1644457435123,0.03605209,113.37,113.32,14.31287838]
[1644457435322,0.03605209,113.37,113.33,42.08244331]
[1644457435525,56.63041761,113.39,113.34,28.352]
[1644457435823,0.03605209,113.38,113.34,15.133]
[1644457436024,56.59436552,113.39,113.34,15.133]
[1644457436243,56.63041761,113.39,113.34,15.133]
[1644457436442,56.59436552,113.39,113.34,15.133]
[1644457436643,56.59436552,113.39,113.34,4.41]
[1644457436842,56.59436552,113.39,113.34,17.6456]
[1644457437242,56.59436552,113.39,113.34,13.2356]
[1644457437649,56.59436552,113.39,113.33,42.08244331]
[1644457437846,56.63041761,113.39,113.33,55.31924331]
[1644457438046,56.63041761,113.39,113.33,42.08244331]
[1644457438845,15.0876,113.38,113.33,42.08244331]
[1644457439047,15.12365209,113.38,113.33,42.08244331]
[1644457440352,41.38284098,113.37,113.33,42.08244331]
[1644457440748,41.38284098,113.37,113.32,74.4433]
[1644457440948,54.62094098,113.37,113.32,61.2055]
[1644457441149,54.62094098,113.37,113.32,12.46]
[1644457441349,54.62094098,113.37,113.3,16.87]
[1644457441549,1.85,113.36,113.3,12.46]
[1644457441748,47.39919838,113.35,113.3,12.46]
[1644457441951,47.39919838,113.35,113.3,55.70171682]
[1644457442751,60.64199838,113.35,113.3,55.70171682]
[1644457442950,60.64199838,113.35,113.3,12.46]
[1644457444351,60.64199838,113.35,113.27,41.2056]
[1644457444554,1.85,113.34,113.27,40.4221]
[1644457444751,13.2449,113.32,113.27,40.4221]
[1644457444950,13.2449,113.32,113.27,16.872]
[1644457445451,35.87652853,113.31,113.27,16.872]
[1644457446854,49.12132853,113.31,113.27,16.872]
[1644457447755,49.12132853,113.31,113.27,12.46]
[1644457466676,49.12132853,113.31,113.24,28.7536]
[1644457466880,1.85,113.3,113.24,36.8006]
[1644457467077,13.249,113.29,113.24,36.8006]
[1644457467479,35.04182569,113.28,113.24,36.8006]
[1644457467881,35.04182569,113.28,113.24,12.46]
[1644457468080,48.29082569,113.28,113.24,12.46]
[1644457473397,48.29082569,113.28,113.24,52.67697388]
[1644457473796,15.097,113.29,113.24,52.67697388]
[1644457473997,13.247,113.29,113.24,52.67697388]
[1644457474798,54.23608159,113.29,113.24,52.67697388]
[1644457474998,54.23608159,113.29,113.24,52.17697388]
[1644457475698,54.23608159,113.29,113.24,65.42397388]
[1644457479208,54.23608159,113.29,113.24,64.92397388]
[1644457479405,13.247,113.29,113.24,64.92397388]
[1644457479606,1.85,113.31,113.24,64.92397388]
[1644457479607,13.246,113.3,113.24,64.92397388]
[1644457479908,13.246,113.3,113.25,17.659]
[1644457480106,13.246,113.3,113.26,12.46]
[1644457480507,13.246,113.3,113.26,57.27999593]
[1644457481804,13.246,113.3,113.26,70.52499593]
[1644457482207,13.2446,113.31,113.26,70.52499593]
[1644457482412,1.85,113.32,113.26,70.52499593]
[1644457482608,1.85,113.34,113.26,70.52499593]
[1644457483008,1.85,113.34,113.27,7.8508466]
[1644457483208,43.33147953,113.35,113.3,47.76140983]
[1644457483707,56.57157953,113.35,113.29,12.46]
[1644457484709,56.57157953,113.35,113.3,13.24]
[1644457485211,56.57157953,113.35,113.31,43.42433538]
[1644457486209,13.2401,113.35,113.31,43.42433538]
[1644457486411,15.0891,113.36,113.31,68.03143538]
[1644457486619,0.03610603,113.37,113.31,80.49143538]
[1644457486812,0.03610603,113.37,113.31,82.34228198]
[1644457487013,0.03610603,113.37,113.32,10.41]
[1644457487212,47.15926727,113.39,113.33,52.22329381]
[1644457487411,0.03610603,113.38,113.33,65.45819381]
[1644457487616,47.15926727,113.39,113.33,65.45819381]
[1644457487817,1.88610603,113.38,113.33,65.45819381]
[1644457488019,1.85,113.38,113.33,65.45819381]
[1644457488219,42.63290839,113.37,113.33,65.45819381]
[1644457490017,0.03610603,113.38,113.33,65.45819381]
[1644457490221,13.27190603,113.39,113.33,65.45819381]
[1644457490422,0.03610603,113.38,113.33,65.45819381]
[1644457490620,13.27190603,113.39,113.33,65.45819381]
[1644457491020,40.69201466,113.38,113.33,65.45819381]
[1644457491222,1.85,113.37,113.33,65.45819381]
[1644457492321,40.72812069,113.38,113.33,65.45819381]
[1644457493523,40.72812069,113.38,113.33,25.6949]
[1644457493723,40.72812069,113.38,113.33,12.46]
[1644457493922,1.849,113.37,113.33,12.46]
[1644457494525,34.41787644,113.36,113.33,12.46]
[1644457494923,34.41787644,113.36,113.34,6.06439994]
[1644457495223,1.849,113.37,113.34,6.06439994]
[1644457495424,1.88510603,113.39,113.34,6.06439994]
[1644457495626,1.849,113.39,113.34,6.06439994]
[1644457495826,13.2381,113.37,113.34,6.06439994]
[1644457496323,60.76783069,113.37,113.34,6.06439994]
[1644457499226,13.2381,113.37,113.34,43.32415627]
[1644457499429,1.88510603,113.39,113.34,43.32415627]
[1644457499627,1.849,113.39,113.34,66.61715627]
[1644457499828,26.34680603,113.4,113.34,66.61715627]
[1644457500227,24.49680603,113.4,113.34,66.61715627]
[1644457500428,42.49243365,113.39,113.34,66.61715627]
[1644457500828,42.49243365,113.39,113.34,18.52439994]
[1644457501039,44.69881877,113.39,113.34,18.52439994]
[1644457501432,1.852,113.38,113.34,6.06439994]
[1644457501827,37.8924458,113.37,113.34,6.06439994]
[1644457502027,15.0926,113.36,113.34,6.06439994]
[1644457502327,15.0926,113.36,113.34,3.03219997]
[1644457502532,37.62325326,113.35,113.34,3.03219997]
[1644457502929,37.62325326,113.35,113.32,4.41]
[1644457503132,37.62325326,113.35,113.33,6.06439994]
[1644457504135,50.86365326,113.35,113.33,6.06439994]
[1644457504728,50.86365326,113.35,113.33,3.03219997]
[1644457505933,50.86365326,113.35,113.34,3.03219997]
[1644457506331,50.86365326,113.35,113.33,3.03219997]
[1644457507630,50.86365326,113.35,113.3,62.88187585]
[1644457508931,50.86365326,113.35,113.31,4.412]
[1644457510033,50.86365326,113.35,113.3,67.29187585]
[1644457514739,50.86365326,113.35,113.3,62.88187585]
[1644457515139,50.86365326,113.35,113.3,49.64187585]
[1644457516043,50.86365326,113.35,113.3,54.05387585]
[1644457518767,50.86365326,113.35,113.3,16.872]
[1644457518967,50.86365326,113.35,113.3,12.46]
[1644457519171,52.71365326,113.35,113.3,12.46]
[1644457519770,50.86365326,113.35,113.3,61.79247741]
[1644457521975,50.86365326,113.35,113.3,16.872]
[1644457525978,50.86365326,113.35,113.31,44.07710683]
[1644457526879,13.2404,113.35,113.31,44.07710683]
[1644457527079,13.2404,113.35,113.31,52.07410683]
[1644457527280,0.03610603,113.36,113.31,66.38495343]
[1644457527480,0.03610603,113.37,113.31,66.38495343]
[1644457527679,0.03610603,113.37,113.31,66.63495343]
[1644457527880,0.03610603,113.37,113.31,66.38495343]
[1644457528081,0.03610603,113.37,113.31,66.63495343]
[1644457528783,0.03610603,113.37,113.32,10.41]
[1644457528980,0.03610603,113.37,113.33,51.52476284]
[1644457529180,55.43836074,113.39,113.33,51.52476284]
[1644457529881,54.20413467,113.39,113.33,51.52476284]
[1644457530082,55.43836074,113.39,113.33,51.52476284]
[1644457530693,55.43836074,113.39,113.33,64.75966284]
[1644457531484,54.20413467,113.39,113.33,64.75966284]
[1644457532488,55.43836074,113.39,113.33,64.75966284]
[1644457532686,54.20413467,113.39,113.33,64.75966284]
[1644457533486,53.20413467,113.39,113.33,64.75966284]
[1644457534586,53.20413467,113.39,113.33,69.16966284]
[1644457535886,13.27160603,113.39,113.33,69.16966284]
[1644457536087,0.03610603,113.39,113.33,69.16966284]
[1644457536289,0.03610603,113.4,113.33,83.14250944]
[1644457536494,0.03610603,113.39,113.35,13.2322]
[1644457536789,0.03610603,113.4,113.36,12.46]
[1644457536991,0.03610603,113.42,113.36,87.01734363]
[1644457537190,0.03610603,113.41,113.36,87.01734363]
[1644457537513,13.2322,113.42,113.37,13.2318]
[1644457537789,0.03610603,113.41,113.38,12.46]
[1644457537990,0.03610603,113.43,113.39,6.06439994]
[1644457538190,0.03610603,113.43,113.39,18.52439994]
[1644457538390,0.03610603,113.43,113.4,1.8508466]
[1644457538689,1.856,113.45,113.41,25.686]
[1644457538690,0.03610603,113.45,113.41,25.686]
[1644457538896,23.42880603,113.46,113.42,47.80645588]
[1644457539093,23.3927,113.46,113.42,58.45945588]
[1644457539490,47.89717315,113.47,113.42,58.45945588]
[1644457539693,3.1383321,113.47,113.42,71.68545588]
[1644457539992,1.90410603,113.47,113.43,12.46]
[1644457540193,13.26210603,113.48,113.43,12.46]
[1644457540392,13.226,113.48,113.43,12.46]
[1644457540692,53.55440072,113.48,113.44,39.52089296]
[1644457540892,53.55440072,113.48,113.43,12.46]
[1644457542093,53.55440072,113.48,113.43,48.26918172]
[1644457542294,55.38540072,113.48,113.43,48.26918172]
[1644457542992,55.38540072,113.48,113.43,12.46]
[1644457543798,55.38540072,113.48,113.41,37.3282]
[1644457543994,13.2287,113.46,113.41,85.5031218]
[1644457544194,1.832,113.45,113.41,85.5031218]
[1644457544496,1.86810603,113.48,113.41,85.5031218]
[1644457544694,0.03610603,113.46,113.41,85.5031218]
[1644457544893,0.03610603,113.47,113.41,98.7300218]
[1644457545293,42.04021264,113.47,113.41,98.7300218]
[1644457545697,13.2279,113.46,113.41,98.7300218]
[1644457545894,15.0779,113.46,113.41,98.7300218]
[1644457546093,37.0198684,113.45,113.41,98.7300218]
[1644457546295,37.0198684,113.45,113.41,85.5031218]
[1644457546497,37.0198684,113.45,113.41,60.6349218]
[1644457546894,15.0779,113.46,113.41,60.6349218]
[1644457547296,13.2279,113.46,113.41,60.6349218]
[1644457547995,61.0414608,113.46,113.41,60.6349218]
[1644457548597,61.0414608,113.46,113.41,65.0419218]
[1644457550496,61.0414608,113.46,113.41,60.6349218]
[1644457552597,61.0414608,113.46,113.41,12.46]
[1644457552998,63.24784592,113.46,113.39,16.867]
[1644457553199,1.85,113.45,113.37,12.46]
[1644457553398,13.2326,113.43,113.37,12.46]
[1644457553601,1.833,113.42,113.38,40.75858874]
[1644457554199,38.607065,113.43,113.38,40.75858874]